bitfinex/quotes_SOLUSD_20240623
["timestamp","ask_amount","ask_price","bid_price","bid_amount"]
[1719108889617,20.32157791,135.15,135.1,6.49]
[1719108892119,6.264,135.15,135.1,6.49]
[1719108892307,12.754,135.15,135.1,6.49]
[1719108893116,6.264,135.15,135.1,6.49]
[1719108893322,12.754,135.15,135.1,6.49]
[1719108895427,12.754,135.15,135.07,200.0]
[1719108895603,12.754,135.15,135.09,6.49]
[1719108896724,12.754,135.15,135.1,6.49]
[1719108898113,6.264,135.15,135.11,6.49]
[1719108899706,6.264,135.15,135.09,100.0]
[1719108899930,6.264,135.15,135.1,6.49]
[1719108900797,12.754,135.15,135.1,6.49]
[1719108901424,12.754,135.15,135.07,100.0]
[1719108901736,6.49,135.13,135.05,100.0]
[1719108902038,6.49,135.12,135.05,100.0]
[1719108902326,6.49,135.12,135.07,6.49]
[1719108903125,6.49,135.12,135.07,106.49]
[1719108903303,6.49,135.13,135.08,6.49]
[1719108903901,13.84055222,135.15,135.09,100.0]
[1719108904103,6.264,135.15,135.1,6.49]
[1719108904325,12.754,135.15,135.1,6.49]
[1719108905821,6.264,135.15,135.1,6.49]
[1719108906132,12.754,135.15,135.1,6.49]
[1719108908726,6.49,135.14,135.09,6.49]
[1719108910129,20.1533,135.15,135.09,6.49]
[1719108910333,28.96464255,135.15,135.09,6.49]
[1719108911014,13.6633,135.15,135.1,6.49]
[1719108911217,6.264,135.15,135.1,6.49]
[1719108911414,6.094,135.15,135.1,6.49]
[1719108911625,15.5702,135.16,135.12,6.49]
[1719108913013,15.5702,135.16,135.12,106.49]
[1719108913226,15.5702,135.16,135.13,6.49]
[1719108913831,7.56986992,135.18,135.14,100.0]
[1719108914041,15.3687,135.19,135.15,6.49]
[1719108914419,15.3687,135.19,135.16,6.49]
[1719108915316,15.3687,135.19,135.14,100.0]
[1719108915522,15.3687,135.19,135.16,6.49]
[1719108915726,15.3687,135.19,135.15,6.49]
[1719108916332,15.3687,135.19,135.14,100.0]
[1719108916535,15.3687,135.19,135.15,6.49]
[1719108919715,15.3687,135.19,135.16,100.0]
[1719108919913,15.3687,135.19,135.16,6.49]
[1719108920314,15.3687,135.19,135.16,106.49]
[1719108920832,15.3687,135.19,135.16,6.49]
[1719108921542,15.3687,135.19,135.16,106.49]
[1719108922037,15.3687,135.19,135.16,6.49]
[1719108922434,6.49,135.22,135.16,6.49]
[1719108922435,6.49,135.22,135.17,6.49]
[1719108922637,15.3687,135.23,135.17,6.49]
[1719108922638,22.0287,135.23,135.17,6.49]
[1719108922836,0.17,135.22,135.18,6.49]
[1719108923214,15.3687,135.23,135.18,6.49]
[1719108923419,15.3687,135.23,135.19,6.49]
[1719108924228,15.3687,135.23,135.2,6.49]
[1719108924431,15.3687,135.23,135.18,100.0]
[1719108924627,15.3687,135.23,135.19,6.49]
[1719108925020,15.3687,135.23,135.18,106.49]
[1719108925551,15.3687,135.23,135.19,6.49]
[1719108927359,15.3687,135.23,135.18,200.0]
[1719108927360,0.8752964,135.25,135.2,6.49]
[1719108927644,7.3652964,135.25,135.2,6.49]
[1719108928022,8.2689964,135.25,135.2,6.49]
[1719108928224,14.7589964,135.25,135.2,6.49]
[1719108930553,8.2689964,135.25,135.2,6.49]
[1719108930759,14.7589964,135.25,135.2,6.49]
[1719108931953,8.2689964,135.25,135.2,6.49]
[1719108933145,7.3951,135.23,135.16,100.0]
[1719108933337,13.8851,135.23,135.18,6.49]
[1719108933839,6.49,135.23,135.18,6.49]
[1719108934037,13.8843,135.24,135.18,6.49]
[1719108935452,13.8843,135.24,135.16,100.0]
[1719108935631,13.8843,135.24,135.18,6.49]
[1719108936249,0.8752964,135.25,135.18,6.49]
[1719108936431,6.66,135.24,135.18,6.49]
[1719108936627,0.17,135.24,135.18,6.49]
[1719108936831,6.66,135.24,135.18,6.49]
[1719108937033,6.66,135.24,135.19,6.49]
[1719108940557,6.66,135.24,135.18,6.49]
[1719108942657,6.66,135.24,135.19,6.49]
[1719108943353,7.3652964,135.25,135.2,6.49]
[1719108943549,0.8752964,135.25,135.2,6.49]
[1719108944156,0.8752964,135.25,135.21,6.49]
[1719108946851,0.8752964,135.25,135.22,6.49]
[1719108948153,0.8752964,135.25,135.23,6.49]
[1719108948555,0.8752964,135.25,135.22,106.49]
[1719108949434,0.8752964,135.25,135.22,100.0]
[1719108949639,0.8752964,135.25,135.23,6.49]
[1719108958968,0.8752964,135.25,135.22,100.0]
[1719108959147,0.8752964,135.25,135.23,6.49]
[1719108962478,0.8752964,135.25,135.2,100.0]
[1719108962658,0.8752964,135.25,135.22,6.49]
[1719108963055,0.8752964,135.25,135.23,6.49]
[1719108964059,8.2690964,135.25,135.19,100.0]
[1719108964268,0.17,135.24,135.21,6.49]
[1719108964784,0.8752964,135.25,135.21,6.49]
[1719108965158,0.8752964,135.25,135.22,6.49]
[1719108968380,0.8752964,135.25,135.23,6.49]
[1719108968785,0.8752964,135.25,135.22,6.49]
[1719108973971,0.8752964,135.25,135.19,100.0]
[1719108974162,0.8752964,135.25,135.21,6.49]
[1719108982083,0.8752964,135.25,135.21,106.49]
[1719108985188,0.8752964,135.25,135.21,100.0]
[1719108988064,0.8752964,135.25,135.21,106.49]
[1719108989390,0.8752964,135.25,135.22,6.49]
[1719108989588,0.8752964,135.25,135.21,106.49]
[1719109000700,0.8752964,135.25,135.19,100.0]
[1719109000887,20.4615,135.24,135.17,100.0]
[1719109001198,6.66,135.23,135.17,100.0]
[1719109001374,6.66,135.23,135.18,6.49]
[1719109001776,6.49,135.23,135.18,6.49]
[1719109001975,13.0673,135.24,135.19,6.49]
[1719109003282,13.0673,135.24,135.17,100.0]
[1719109003475,13.0673,135.24,135.19,6.49]
[1719109004400,8.4190255,135.25,135.21,6.49]
[1719109006089,8.4190255,135.25,135.2,6.49]
[1719109008629,7.3943,135.24,135.2,6.49]
[1719109008800,7.3943,135.24,135.19,6.49]
[1719109009505,22.3029255,135.25,135.19,6.49]
[1719109009686,15.8129255,135.25,135.19,6.49]
[1719109010003,31.13144578,135.25,135.19,6.49]
[1719109010202,22.3029255,135.25,135.19,6.49]
[1719109012893,22.3029255,135.25,135.19,106.49]
[1719109013094,22.3029255,135.25,135.2,6.49]
[1719109013391,14.9090255,135.25,135.2,6.49]
[1719109014001,8.4190255,135.25,135.2,6.49]
[1719109014193,0.8752964,135.25,135.2,6.49]
[1719109015915,8.2689964,135.25,135.2,6.49]
[1719109016407,0.8752964,135.25,135.2,6.49]
[1719109018209,8.2689964,135.25,135.2,6.49]
[1719109026013,14.7589964,135.25,135.2,6.49]
[1719109027101,8.2689964,135.25,135.2,6.49]
[1719109032824,0.8752964,135.25,135.2,6.49]
[1719109033915,0.8752964,135.25,135.19,200.0]
[1719109034117,0.8752964,135.25,135.21,106.49]
[1719109034903,0.8752964,135.25,135.22,6.49]
[1719109035323,0.8752964,135.25,135.21,100.0]
[1719109035623,0.8752964,135.25,135.22,6.49]
[1719109036024,0.8752964,135.25,135.21,106.49]
[1719109042227,0.8752964,135.25,135.19,200.0]
[1719109042529,0.8752964,135.25,135.21,6.49]
[1719109044229,0.8752964,135.25,135.21,106.49]
[1719109045738,0.8752964,135.25,135.23,106.49]
[1719109046829,0.8752964,135.25,135.24,6.49]
[1719109056054,0.8752964,135.25,135.23,106.49]
[1719109062147,0.8752964,135.25,135.23,100.0]
[1719109062347,0.8752964,135.25,135.21,100.0]
[1719109062653,0.8752964,135.25,135.22,6.49]
[1719109067646,0.8752964,135.25,135.23,6.49]
[1719109071771,0.8752964,135.25,135.21,100.0]
[1719109071931,0.8752964,135.25,135.22,6.49]
[1719109072135,0.8752964,135.25,135.21,6.49]
[1719109072739,0.8752964,135.25,135.21,106.49]
[1719109073857,0.8752964,135.25,135.22,6.49]
[1719109075149,0.8752964,135.25,135.23,6.49]
[1719109078464,0.8752964,135.25,135.21,100.0]
[1719109078674,0.8752964,135.25,135.23,6.49]
[1719109078865,0.8752964,135.25,135.22,6.49]
[1719109084342,0.8752964,135.25,135.21,100.0]
[1719109084568,0.8752964,135.25,135.22,6.49]
[1719109084871,0.8752964,135.25,135.21,106.49]
[1719109085169,0.8752964,135.25,135.22,6.49]
[1719109087673,0.8752964,135.25,135.23,100.0]
[1719109087850,0.8752964,135.25,135.23,6.49]
[1719109088976,0.8752964,135.25,135.22,6.49]
[1719109090254,0.8752964,135.25,135.19,100.0]
[1719109090571,0.8752964,135.25,135.22,6.49]
[1719109099059,0.8752964,135.25,135.21,100.0]
[1719109099260,0.8752964,135.25,135.19,100.0]
[1719109099577,0.8752964,135.25,135.22,6.49]
[1719109099961,0.8752964,135.25,135.21,6.49]
[1719109104080,0.8752964,135.25,135.19,100.0]
[1719109104268,22.4269964,135.25,135.17,100.0]
[1719109104473,22.4269964,135.25,135.2,6.49]
[1719109104979,22.4269964,135.25,135.19,6.49]
[1719109105469,22.4269964,135.25,135.17,100.0]
[1719109105470,6.49,135.24,135.17,100.0]
[1719109105663,0.17,135.23,135.17,100.0]
[1719109105858,0.17,135.23,135.19,6.49]
[1719109107189,22.4269964,135.25,135.2,6.49]
[1719109107399,15.9369964,135.25,135.19,100.0]
[1719109109288,23.3307964,135.25,135.17,100.0]
[1719109109477,23.3307964,135.25,135.2,6.49]
[1719109109783,29.8207964,135.25,135.2,6.49]
[1719109110084,0.34,135.24,135.19,6.49]
[1719109110676,6.83,135.24,135.19,6.49]
[1719109111790,14.2243,135.24,135.17,100.0]
[1719109111979,6.49,135.23,135.17,100.0]
[1719109112174,6.49,135.23,135.18,6.49]
[1719109112966,14.2245,135.24,135.19,6.49]
[1719109113170,14.2245,135.24,135.18,6.49]
[1719109114987,6.49,135.23,135.18,6.49]
[1719109116496,6.49,135.23,135.17,100.0]
[1719109116698,6.49,135.23,135.18,6.49]
[1719109119197,14.2245,135.24,135.19,6.49]
[1719109122604,15.9369964,135.25,135.19,100.0]
[1719109122901,15.9369964,135.25,135.21,6.49]
[1719109123688,29.8206964,135.25,135.2,6.49]
[1719109124198,22.4269964,135.25,135.2,6.49]
[1719109132003,15.9369964,135.25,135.19,100.0]
[1719109132202,15.9369964,135.25,135.21,6.49]
[1719109135091,15.9369964,135.25,135.22,6.49]
[1719109135792,15.9369964,135.25,135.22,106.49]
[1719109135999,0.8752964,135.25,135.23,6.49]
[1719109139099,0.8752964,135.25,135.22,106.49]
[1719109144127,0.8752964,135.25,135.23,6.49]
[1719109152015,0.8752964,135.25,135.24,6.49]
[1719109176963,0.8752964,135.25,135.22,100.0]
[1719109177363,0.8752964,135.25,135.23,6.49]
[1719109178642,0.8752964,135.25,135.24,6.49]
[1719109185143,0.8752964,135.25,135.22,100.0]
[1719109185340,0.8752964,135.25,135.24,6.49]
[1719109186258,0.8752964,135.25,135.23,6.49]
[1719109189868,0.8752964,135.25,135.22,100.0]
[1719109190051,0.8752964,135.25,135.22,106.49]
[1719109200147,0.8752964,135.25,135.22,6.49]
[1719109200474,0.8752964,135.25,135.18,100.0]
[1719109200672,0.8752964,135.25,135.21,6.49]
[1719109201961,0.8752964,135.25,135.18,100.0]
[1719109202166,0.8752964,135.25,135.21,6.49]
[1719109202559,0.8752964,135.25,135.22,6.49]
[1719109207784,0.8752964,135.25,135.19,200.0]
[1719109207968,0.8752964,135.25,135.22,6.49]
[1719109208868,0.8752964,135.25,135.21,6.49]
[1719109214685,14.7593964,135.25,135.17,100.0]
[1719109214985,14.7593964,135.25,135.19,6.49]
[1719109215392,14.7593964,135.25,135.2,6.49]
[1719109216288,29.8506964,135.25,135.2,6.49]
[1719109216592,22.4565964,135.25,135.2,6.49]
[1719109219291,29.8506964,135.25,135.17,100.0]
[1719109219590,0.34,135.24,135.19,6.49]
[1719109220788,6.83,135.24,135.19,6.49]
[1719109221993,0.17,135.24,135.2,6.49]
[1719109222299,22.4565964,135.25,135.2,6.49]
[1719109222491,15.9665964,135.25,135.2,6.49]
[1719109223994,23.3602964,135.25,135.2,6.49]
[1719109224399,7.3943,135.24,135.2,6.49]
[1719109224604,7.5645,135.24,135.19,6.49]
[1719109225713,0.17,135.24,135.2,6.49]
[1719109226002,22.4565964,135.25,135.2,6.49]
[1719109226203,15.9665964,135.25,135.2,6.49]
[1719109227218,29.8503964,135.25,135.2,6.49]
[1719109227583,15.9665964,135.25,135.21,6.49]
[1719109232016,23.3602964,135.25,135.21,6.49]
[1719109232525,23.3602964,135.25,135.2,6.49]
[1719109233092,0.17,135.24,135.2,6.49]
[1719109234725,0.17,135.24,135.17,100.0]
[1719109235021,0.17,135.24,135.2,6.49]
[1719109238816,0.17,135.24,135.17,100.0]
[1719109239022,0.17,135.24,135.19,6.49]
[1719109242912,6.66,135.24,135.19,6.49]
[1719109244541,0.17,135.24,135.19,6.49]
[1719109245356,0.17,135.24,135.17,100.0]
[1719109245558,0.17,135.24,135.19,6.49]
[1719109248140,6.66,135.24,135.19,6.49]
[1719109252057,0.17,135.24,135.19,6.49]
[1719109253060,6.66,135.24,135.19,6.49]
[1719109253547,6.66,135.24,135.17,100.0]
[1719109253745,6.66,135.24,135.19,6.49]
[1719109255954,0.17,135.24,135.19,6.49]
[1719109258537,6.66,135.24,135.19,6.49]
[1719109260928,6.49,135.21,135.13,100.0]
[1719109261126,6.49,135.2,135.15,6.49]
[1719109261328,6.49,135.2,135.13,100.0]
[1719109261535,6.49,135.2,135.15,6.49]
[1719109264241,6.49,135.2,135.13,100.0]
[1719109264556,0.17,135.19,135.14,6.49]
[1719109267233,16.3493,135.19,135.13,100.0]
[1719109267438,16.3493,135.19,135.14,6.49]
[1719109268745,22.7312,135.19,135.11,100.0]
[1719109268951,6.49,135.16,135.11,100.0]
[1719109269155,7.5679,135.18,135.11,106.49]
[1719109269348,6.49,135.16,135.11,106.49]
[1719109269555,6.66,135.17,135.12,6.49]
[1719109273463,6.66,135.17,135.11,100.0]
[1719109273761,6.66,135.17,135.09,121.802]
[1719109273940,6.66,135.17,135.12,6.49]
[1719109274139,6.49,135.16,135.11,6.49]
[1719109275161,6.49,135.16,135.11,106.49]
[1719109275539,6.49,135.16,135.11,100.0]
[1719109275755,6.66,135.17,135.11,100.0]
[1719109275952,6.66,135.17,135.12,6.49]
[1719109278464,14.0581,135.17,135.12,6.49]
[1719109281959,7.3986,135.16,135.09,100.0]
[1719109282164,0.17,135.15,135.12,6.49]
[1719109282743,0.34,135.16,135.12,6.49]
[1719109284950,6.83,135.16,135.11,6.49]
[1719109285154,14.2287,135.16,135.11,6.49]
[1719109285460,14.2287,135.16,135.09,100.0]
[1719109285661,14.2287,135.16,135.11,6.49]
[1719109285863,14.2287,135.16,135.09,100.0]
[1719109286061,6.49,135.15,135.1,6.49]
[1719109287071,13.8892,135.15,135.1,6.49]
[1719109287947,6.49,135.15,135.1,6.49]
[1719109290772,30.3375,135.15,135.1,6.49]
[1719109290951,30.3375,135.15,135.08,6.49]
[1719109290952,14.0598,135.14,135.08,6.49]
[1719109291159,14.0599,135.14,135.08,6.49]
[1719109293271,6.49,135.13,135.08,6.49]
[1719109293677,6.49,135.13,135.05,100.0]
[1719109293855,6.49,135.13,135.08,6.49]
[1719109295459,0.17,135.12,135.07,6.49]
[1719109295665,0.34,135.12,135.08,6.49]
[1719109296753,6.83,135.12,135.07,6.49]
[1719109297572,16.1461,135.11,135.07,6.49]
[1719109301061,16.1461,135.11,135.05,100.0]
[1719109301273,16.1461,135.11,135.06,6.49]
[1719109301274,22.6361,135.11,135.06,6.49]
[1719109301479,0.17,135.1,135.06,6.49]
[1719109303970,6.83,135.1,135.03,100.0]
[1719109304171,6.83,135.1,135.05,6.49]
[1719109304570,6.83,135.1,135.03,100.0]
[1719109304882,14.2322,135.1,135.05,6.49]
[1719109305078,14.2322,135.1,135.04,6.49]
[1719109305280,13.8926,135.09,135.01,100.0]
[1719109305593,13.8926,135.09,135.04,6.49]
[1719109305594,0.34,135.08,135.04,6.49]
[1719109307579,6.83,135.08,135.03,6.49]
[1719109307986,22.5279,135.07,134.99,121.768]
[1719109308160,22.5279,135.07,135.02,6.49]
[1719109308779,45.0,135.06,134.97,100.0]
[1719109308996,6.66,135.05,135.0,6.49]
[1719109309283,16.0379,135.07,135.03,6.49]
[1719109310473,16.0379,135.07,134.99,100.0]
[1719109310674,0.17,135.06,135.03,6.49]
[1719109311089,0.17,135.06,135.02,6.49]
[1719109311287,0.17,135.06,135.01,6.49]
[1719109311288,7.5743,135.06,135.01,6.49]
[1719109311497,14.0643,135.06,135.01,6.49]
[1719109311883,14.0643,135.06,134.97,100.0]
[1719109312077,0.17,135.05,135.01,6.49]
[1719109312387,6.66,135.06,135.01,6.49]
[1719109313886,0.17,135.06,134.99,100.0]
[1719109314087,6.49,135.05,134.99,106.49]
[1719109315477,6.49,135.05,134.99,6.49]
[1719109315680,6.66,135.04,134.99,6.49]
[1719109316096,16.0379,135.03,134.97,100.0]
[1719109316299,16.0379,135.03,134.99,6.49]
[1719109317905,16.0379,135.03,134.97,100.0]
[1719109318116,16.0379,135.03,134.99,6.49]
[1719109318619,22.5279,135.03,134.98,6.49]
[1719109318789,0.17,135.02,134.95,100.0]
[1719109319111,6.83,135.02,134.97,6.49]
[1719109319283,6.83,135.02,134.95,100.0]
[1719109319487,6.83,135.02,134.97,6.49]
[1719109321311,6.83,135.02,134.95,100.0]
[1719109321496,6.83,135.02,134.97,6.49]
[1719109321883,6.49,135.0,134.95,100.0]
[1719109322087,6.49,135.0,134.95,6.49]
[1719109322805,0.17,134.99,134.93,100.0]
[1719109323006,0.17,134.99,134.95,6.49]
[1719109323209,0.17,135.02,134.93,200.0]
[1719109323388,0.34,135.02,134.92,100.0]
[1719109323593,7.4074,135.0,134.95,6.49]
[1719109323932,0.17,134.99,134.95,6.49]
[1719109324104,0.34,134.99,134.95,6.49]
[1719109324905,15.4364,134.98,134.95,6.49]
[1719109325692,15.4364,134.98,134.94,6.49]
[1719109328211,15.4364,134.98,134.92,100.0]
[1719109328416,0.17,134.97,134.93,6.49]
[1719109328711,0.17,134.97,134.9,100.0]
[1719109328926,6.83,134.97,134.92,6.49]
[1719109329117,6.83,134.97,134.91,6.49]
[1719109329294,6.83,134.97,134.92,6.49]
[1719109329614,6.83,134.97,134.9,100.0]
[1719109329809,6.83,134.97,134.92,6.49]
[1719109330017,6.83,134.97,134.9,100.0]
[1719109330323,6.49,134.96,134.91,6.49]
[1719109330506,6.83,134.97,134.92,6.49]
[1719109332203,6.49,134.96,134.88,100.0]
[1719109332412,6.83,134.95,134.9,6.49]
[1719109332999,6.83,134.95,134.91,6.49]
[1719109333199,0.17,134.95,134.92,6.49]
[1719109333399,0.34,134.96,134.89,6.49]
[1719109333607,14.2392,134.97,134.92,6.49]
[1719109335005,13.8997,134.96,134.88,100.0]
[1719109335205,0.34,134.95,134.88,100.0]
[1719109335407,0.34,134.95,134.9,6.49]
[1719109337210,0.34,134.95,134.88,100.0]
[1719109337400,0.34,134.95,134.9,6.49]
[1719109339124,0.34,134.95,134.91,6.49]
[1719109340111,6.83,134.95,134.9,6.49]
[1719109340311,6.83,134.95,134.88,100.0]
[1719109340312,0.17,134.94,134.91,6.49]
[1719109340613,7.65202724,134.97,134.91,100.0]
[1719109340809,7.65202724,134.97,134.95,6.49]
[1719109341001,22.0447,134.98,134.95,6.49]
[1719109341202,29.69168029,134.98,134.95,6.49]
[1719109341900,22.0447,134.98,134.95,6.49]
[1719109342104,22.0447,134.98,134.94,6.49]
[1719109342315,0.17,134.97,134.89,100.0]
[1719109342509,0.17,134.97,134.89,125.96]
[1719109342706,0.34,134.97,134.89,125.96]
[1719109342910,0.34,134.97,134.93,6.49]
[1719109343322,0.34,134.97,134.92,6.49]
[1719109343505,7.7491,134.97,134.92,6.49]
[1719109343821,14.2391,134.97,134.92,6.49]
[1719109344021,13.8996,134.96,134.87,100.0]
[1719109344225,0.17,134.95,134.9,6.49]
[1719109344609,0.34,134.95,134.87,100.0]
[1719109344803,0.34,134.95,134.91,6.49]
[1719109345029,0.34,134.95,134.92,6.49]
[1719109347527,7.7501,134.95,134.9,6.49]
[1719109348335,14.2401,134.95,134.9,6.49]
[1719109350742,14.2401,134.95,134.87,100.0]
[1719109350962,0.17,134.95,134.91,6.49]
[1719109351121,29.69379727,134.98,134.89,125.96]
[1719109351321,0.34,134.97,134.89,125.96]
[1719109351660,0.34,134.97,134.94,6.49]
[1719109351946,7.7492,134.97,134.93,6.49]
[1719109355145,14.2392,134.97,134.92,6.49]
[1719109356054,7.7492,134.97,134.92,6.49]
[1719109357752,29.69379727,134.98,134.94,6.49]
[1719109357937,22.0447,134.98,134.94,6.49]
[1719109358653,29.4533,134.98,134.94,6.49]
[1719109364559,7.579,134.97,134.92,6.49]
[1719109364739,14.069,134.97,134.92,6.49]
[1719109367169,0.17,134.96,134.92,6.49]
[1719109370751,0.17,134.96,134.91,6.49]
[1719109371762,0.17,134.96,134.92,6.49]
[1719109373550,0.17,134.96,134.93,6.49]
[1719109373748,0.17,134.97,134.93,6.49]
[1719109373749,0.34,134.97,134.93,6.49]
[1719109377064,15.5662,135.02,134.96,12.98]
[1719109377265,15.5662,135.02,134.99,6.49]
[1719109377484,15.5662,135.02,135.0,6.49]
[1719109379077,15.5662,135.02,134.99,6.49]
[1719109382051,13.71462246,135.02,134.99,6.49]
[1719109386476,284.85962505,135.05,135.01,6.49]
[1719109386658,284.85962505,135.05,135.02,6.49]
[1719109386659,277.1859,135.05,135.02,6.49]
[1719109386847,23.1859,135.05,135.02,6.49]
[1719109387054,15.7729,135.08,135.01,100.0]
[1719109387254,15.7729,135.08,135.04,6.49]
[1719109387455,15.7729,135.08,135.05,6.49]
[1719109388160,15.7729,135.08,134.99,100.0]
[1719109388374,6.49,135.07,135.02,6.49]
[1719109388560,7.4041,135.06,135.02,6.49]
[1719109389058,7.4041,135.06,135.01,6.49]
[1719109390482,7.4048,135.05,135.0,6.49]
[1719109390673,0.17,135.04,135.0,6.49]
[1719109391256,0.17,135.04,134.97,100.0]
[1719109391573,7.5752,135.04,134.99,6.49]
[1719109391963,14.0655,135.04,134.97,100.0]
[1719109392165,14.0655,135.04,134.98,6.49]
[1719109392563,15.7729,135.03,134.97,100.0]
[1719109392766,15.7729,135.03,134.98,6.49]
[1719109392966,22.2629,135.03,134.98,6.49]
[1719109397179,15.7729,135.03,134.98,6.49]
[1719109401883,6.49,135.01,134.93,116.0729]
[1719109402080,6.49,135.0,134.95,6.49]
[1719109403287,0.17,134.99,134.93,100.0]
[1719109403462,6.66,134.99,134.94,6.49]
[1719109404673,6.66,134.99,134.91,100.0]
[1719109404990,6.66,134.99,134.94,6.49]
[1719109406385,6.66,134.99,134.91,100.0]
[1719109406386,15.4787,134.98,134.91,100.0]
[1719109406590,15.4787,134.98,134.93,6.49]
[1719109406972,21.9687,134.98,134.91,100.0]
[1719109407267,21.9687,134.98,134.93,6.49]
[1719109411077,21.9687,134.98,134.92,6.49]
[1719109411698,6.49,134.97,134.92,6.49]
[1719109416606,6.49,134.97,134.89,106.549]
[1719109416805,0.17,134.96,134.92,6.49]
[1719109417107,6.2662,134.97,134.91,100.0]
[1719109417292,6.2662,134.97,134.93,6.49]
[1719109419710,6.2662,134.97,134.92,6.49]
[1719109420089,12.7562,134.97,134.92,6.49]
[1719109420288,6.2662,134.97,134.92,6.49]
[1719109420504,12.7562,134.97,134.92,6.49]
[1719109421108,6.2662,134.97,134.92,6.49]
[1719109421498,22.3087,134.98,134.92,6.49]
[1719109421795,0.17,134.97,134.92,6.49]
[1719109423092,0.17,134.97,134.89,106.49]
[1719109423301,0.17,134.97,134.93,6.49]
[1719109424096,0.17,134.97,134.92,6.49]
[1719109425211,14.0693,134.97,134.89,100.0]
[1719109425591,14.0693,134.97,134.91,6.49]
[1719109426597,6.49,134.96,134.91,6.49]
[1719109430314,14.0693,134.97,134.91,6.49]
[1719109431833,14.0693,134.97,134.92,6.49]
[1719109433717,7.5793,134.97,134.92,6.49]
[1719109436022,14.0693,134.97,134.89,100.0]
[1719109436322,14.0693,134.97,134.91,6.49]
[1719109437107,0.17,134.96,134.92,6.49]
[1719109442016,7.5793,134.97,134.92,6.49]
[1719109442427,0.17,134.97,134.92,6.49]
[1719109442733,0.34,134.97,134.92,6.49]
[1719109443539,0.34,134.97,134.89,100.0]
[1719109443709,0.34,134.97,134.92,6.49]
[1719109444620,7.7494,134.97,134.89,100.0]
[1719109444807,7.7494,134.97,134.91,6.49]
[1719109445012,7.7494,134.97,134.89,100.0]
[1719109445206,7.7494,134.97,134.91,6.49]
[1719109445747,14.2142,134.97,134.89,100.0]
[1719109445937,14.2142,134.97,134.91,6.49]
[1719109450946,14.2142,134.97,134.92,6.49]
[1719109451810,15.4787,134.98,134.91,100.0]
[1719109452041,15.4787,134.98,134.96,6.49]
[1719109452348,23.62023324,135.02,134.97,6.49]
[1719109452534,15.9555,135.02,134.99,6.49]